[Event "Titled Tuesday Blitz November 08 Late 2022"]
[White "Leschinsky, Gary"]
[Black "Rosen, Eric"]
[WhiteFideId "30951321"]
[BlackFideId "2032562"]
[WhiteElo "1855"]
[BlackElo "2362"]
[Result "1-0"]
[Round "04"]
[TimeControl "180+1"]
[Date "2022.11.09"]
[WhiteClock "0:00:10"]
[BlackClock "0:00:02"]

1. d4 {[%clk 0:03:00]}  d5 {[%clk 0:03:00]} 2. c4 {[%clk 0:03:00]}  e6 {[%clk 0:03:00]} 3. Nc3 {[%clk 0:03:00]}  Nf6 {[%clk 0:03:01]} 4. cxd5 {[%clk 0:03:00]}  exd5 {[%clk 0:03:01]} 5. Bg5 {[%clk 0:03:00]}  c6 {[%clk 0:03:01]} 6. e3 {[%clk 0:03:01]}  Bd6 {[%clk 0:03:02]} 7. Bd3 {[%clk 0:03:00]}  h6 {[%clk 0:03:02]} 8. Bh4 {[%clk 0:03:00]}  O-O {[%clk 0:03:03]} 9. Nf3 {[%clk 0:03:00]}  Re8 {[%clk 0:03:03]} 10. a3 {[%clk 0:03:00]}  a5 {[%clk 0:03:03]} 11. O-O {[%clk 0:02:54]}  Be6 {[%clk 0:03:02]} 12. Ne5 {[%clk 0:02:53]}  c5 {[%clk 0:03:00]} 13. Nf3 {[%clk 0:02:28]}  Nc6 {[%clk 0:02:58]} 14. Nb5 {[%clk 0:02:22]}  Be7 {[%clk 0:02:57]} 15. dxc5 {[%clk 0:02:19]}  Bxc5 {[%clk 0:02:57]} 16. Rc1 {[%clk 0:02:19]}  Be7 {[%clk 0:02:55]} 17. Nbd4 {[%clk 0:02:10]}  Bg4 {[%clk 0:02:55]} 18. Nxc6 {[%clk 0:02:04]}  bxc6 {[%clk 0:02:55]} 19. Rxc6 {[%clk 0:02:05]}  Nd7 {[%clk 0:02:51]} 20. Bxe7 {[%clk 0:02:02]}  Qxe7 {[%clk 0:02:52]} 21. Be2 {[%clk 0:02:01]}  Nf6 {[%clk 0:02:47]} 22. Qd4 {[%clk 0:01:59]}  Bf5 {[%clk 0:02:40]} 23. Rfc1 {[%clk 0:01:56]}  Rab8 {[%clk 0:02:38]} 24. h3 {[%clk 0:01:51]}  Be4 {[%clk 0:02:37]} 25. R1c5 {[%clk 0:01:41]}  Qa7 {[%clk 0:02:31]} 26. Rc7 {[%clk 0:01:32]}  Qb6 {[%clk 0:02:32]} 27. Bb5 {[%clk 0:01:12]}  Red8 {[%clk 0:02:17]} 28. Nd2 {[%clk 0:01:10]}  Bg6 {[%clk 0:02:13]} 29. a4 {[%clk 0:01:10]}  Qd6 {[%clk 0:02:06]} 30. R5c6 {[%clk 0:01:06]}  Qf8 {[%clk 0:02:01]} 31. Nb3 {[%clk 0:01:02]}  Ra8 {[%clk 0:01:51]} 32. f3 {[%clk 0:00:55]}  Re8 {[%clk 0:01:46]} 33. Kf2 {[%clk 0:00:53]}  Red8 {[%clk 0:01:37]} 34. Qc5 {[%clk 0:00:51]}  Ne8 {[%clk 0:01:21]} 35. Qxf8+ {[%clk 0:00:43]}  Kxf8 {[%clk 0:01:22]} 36. Rb7 {[%clk 0:00:39]}  Nd6 {[%clk 0:01:09]} 37. Rbb6 {[%clk 0:00:30]}  Nxb5 {[%clk 0:01:05]} 38. Rxb5 {[%clk 0:00:31]}  Bd3 {[%clk 0:01:05]} 39. Rxa5 {[%clk 0:00:29]}  Rab8 {[%clk 0:01:06]} 40. Rc3 {[%clk 0:00:28]}  Bc4 {[%clk 0:01:05]} 41. Nd4 {[%clk 0:00:25]}  Rxb2+ {[%clk 0:01:06]} 42. Kg3 {[%clk 0:00:26]}  h5 {[%clk 0:00:56]} 43. Rc2 {[%clk 0:00:26]}  Rb1 {[%clk 0:00:51]} 44. h4 {[%clk 0:00:26]}  Rdb8 {[%clk 0:00:40]} 45. Ra7 {[%clk 0:00:26]}  R8b6 {[%clk 0:00:32]} 46. a5 {[%clk 0:00:21]}  Rg6+ {[%clk 0:00:31]} 47. Kh2 {[%clk 0:00:22]}  Ke8 {[%clk 0:00:11]} 48. Nf5 {[%clk 0:00:21]}  Kd8 {[%clk 0:00:09]} 49. Rxf7 {[%clk 0:00:19]}  Ra6 {[%clk 0:00:07]} 50. Rd2 {[%clk 0:00:12]}  Rxa5 {[%clk 0:00:07]} 51. Rxg7 {[%clk 0:00:13]}  Raa1 {[%clk 0:00:07]} 52. Nd6 {[%clk 0:00:11]}  Rh1+ {[%clk 0:00:06]} 53. Kg3 {[%clk 0:00:11]}  Bb3 {[%clk 0:00:07]} 54. Nb5 {[%clk 0:00:10]}  Rae1 {[%clk 0:00:05]} 55. Nc3 {[%clk 0:00:08]}  Bc4 {[%clk 0:00:05]} 56. Nxd5 {[%clk 0:00:08]}  Bxd5 {[%clk 0:00:03]} 57. Rxd5+ {[%clk 0:00:09]}  Ke8 {[%clk 0:00:04]} 58. e4 {[%clk 0:00:10]}  Rc1 {[%clk 0:00:03]} 59. Rxh5 {[%clk 0:00:09]}  Kf8 {[%clk 0:00:02]} 60. Rb7 {[%clk 0:00:08]}  Kg8 {[%clk 0:00:01]} 61. Ra5 {[%clk 0:00:08]}  Rc8 {[%clk 0:00:01]} 62. Rab5 {[%clk 0:00:08]}  Rd1 {[%clk 0:00:01]} 63. Rb8 {[%clk 0:00:09]}  Rxb8 {[%clk 0:00:02]} 64. Rxb8+ {[%clk 0:00:10]}  Kg7 {[%clk 0:00:02]} 65. Kf4 {[%clk 0:00:10]}  Rd7 {[%clk 0:00:02]} 66. g4 {[%clk 0:00:10]}  Rf7+ {[%clk 0:00:02]} 67. Kg3 {[%clk 0:00:11]}  Ra7 {[%clk 0:00:03]} 68. h5 {[%clk 0:00:11]}  Ra1 {[%clk 0:00:04]} 69. g5 {[%clk 0:00:12]}  Kh7 {[%clk 0:00:04]} 70. Rb7+ {[%clk 0:00:11]}  Kg8 {[%clk 0:00:04]} 71. Kg4 {[%clk 0:00:12]}  Kh8 {[%clk 0:00:05]} 72. Kf5 {[%clk 0:00:12]}  Ra5+ {[%clk 0:00:05]} 73. e5 {[%clk 0:00:13]}  Ra8 {[%clk 0:00:05]} 74. f4 {[%clk 0:00:13]}  Rf8+ {[%clk 0:00:06]} 75. Kg4 {[%clk 0:00:13]}  Rc8 {[%clk 0:00:06]} 76. h6 {[%clk 0:00:13]}  Rg8 {[%clk 0:00:05]} 77. f5 {[%clk 0:00:13]}  Rc8 {[%clk 0:00:05]} 78. g6 {[%clk 0:00:13]}  Ra8 {[%clk 0:00:05]} 79. Kg5 {[%clk 0:00:13]}  Re8 {[%clk 0:00:05]} 80. e6 {[%clk 0:00:11]}  Rf8 {[%clk 0:00:03]} 81. e7 {[%clk 0:00:11]}  Re8 {[%clk 0:00:03]} 82. Rd7 {[%clk 0:00:12]}  Rg8 {[%clk 0:00:02]} 83. Rd8 {[%clk 0:00:10]}  Re8 {[%clk 0:00:02]} 84. Rxe8# {[%clk 0:00:10]} 1-0


[Site "https://www.chess.com"]

[Event "Titled Tuesday Blitz November 08 Late 2022"]
[White "Levine, David"]
[Black "Grave, Jacob Templen"]
[WhiteFideId "2011611"]
[BlackFideId "1542656"]
[WhiteElo "2176"]
[BlackElo "2126"]
[Result "1-0"]
[Round "04"]
[TimeControl "180+1"]
[Date "2022.11.09"]
[WhiteClock "0:00:14"]
[BlackClock "0:00:01"]

1. d4 {[%clk 0:03:00]}  g6 {[%clk 0:02:48]} 2. Nf3 {[%clk 0:02:58]}  Bg7 {[%clk 0:02:47]} 3. g3 {[%clk 0:02:58]}  d6 {[%clk 0:02:43]} 4. Bg2 {[%clk 0:02:58]}  Nf6 {[%clk 0:02:44]} 5. O-O {[%clk 0:02:58]}  O-O {[%clk 0:02:44]} 6. c4 {[%clk 0:02:58]}  Nbd7 {[%clk 0:02:36]} 7. Nc3 {[%clk 0:02:58]}  c6 {[%clk 0:02:34]} 8. e4 {[%clk 0:02:57]}  e5 {[%clk 0:02:31]} 9. h3 {[%clk 0:02:55]}  Re8 {[%clk 0:02:30]} 10. Be3 {[%clk 0:02:51]}  a5 {[%clk 0:02:25]} 11. Qc2 {[%clk 0:02:49]}  exd4 {[%clk 0:02:24]} 12. Nxd4 {[%clk 0:02:49]}  Nc5 {[%clk 0:02:22]} 13. Rad1 {[%clk 0:02:26]}  Qe7 {[%clk 0:02:20]} 14. Rfe1 {[%clk 0:02:06]}  Ne6 {[%clk 0:02:01]} 15. Nde2 {[%clk 0:02:04]}  Nc5 {[%clk 0:01:46]} 16. Bd4 {[%clk 0:01:58]}  Be6 {[%clk 0:01:29]} 17. b3 {[%clk 0:01:53]}  Nfd7 {[%clk 0:01:14]} 18. Nf4 {[%clk 0:01:38]}  Bxd4 {[%clk 0:01:10]} 19. Rxd4 {[%clk 0:01:38]}  Ne5 {[%clk 0:01:06]} 20. Red1 {[%clk 0:01:35]}  Rad8 {[%clk 0:01:04]} 21. Kf1 {[%clk 0:01:15]}  g5 {[%clk 0:00:53]} 22. Nxe6 {[%clk 0:01:14]}  Nxe6 {[%clk 0:00:52]} 23. R4d2 {[%clk 0:01:08]}  Rd7 {[%clk 0:00:42]} 24. Ne2 {[%clk 0:01:07]}  Red8 {[%clk 0:00:36]} 25. Nd4 {[%clk 0:01:06]}  Nxd4 {[%clk 0:00:33]} 26. Rxd4 {[%clk 0:01:06]}  c5 {[%clk 0:00:30]} 27. Rd5 {[%clk 0:01:02]}  Nc6 {[%clk 0:00:30]} 28. Qd2 {[%clk 0:01:00]}  b6 {[%clk 0:00:28]} 29. Qxg5+ {[%clk 0:00:55]}  Qxg5 {[%clk 0:00:25]} 30. Rxg5+ {[%clk 0:00:55]}  Kf8 {[%clk 0:00:26]} 31. h4 {[%clk 0:00:54]}  f6 {[%clk 0:00:24]} 32. Rh5 {[%clk 0:00:49]}  Kg7 {[%clk 0:00:23]} 33. Bh3 {[%clk 0:00:49]}  Re7 {[%clk 0:00:22]} 34. f3 {[%clk 0:00:44]}  Nd4 {[%clk 0:00:20]} 35. Kf2 {[%clk 0:00:41]}  Re5 {[%clk 0:00:18]} 36. Bf5 {[%clk 0:00:35]}  h6 {[%clk 0:00:16]} 37. Bg4 {[%clk 0:00:25]}  Re7 {[%clk 0:00:12]} 38. Rd5 {[%clk 0:00:23]}  Ra8 {[%clk 0:00:09]} 39. Bf5 {[%clk 0:00:17]}  a4 {[%clk 0:00:08]} 40. R1xd4 {[%clk 0:00:17]}  cxd4 {[%clk 0:00:08]} 41. Rxd4 {[%clk 0:00:17]}  axb3 {[%clk 0:00:08]} 42. axb3 {[%clk 0:00:17]}  Ra2+ {[%clk 0:00:04]} 43. Ke3 {[%clk 0:00:16]}  Rb2 {[%clk 0:00:04]} 44. Rxd6 {[%clk 0:00:16]}  Rxb3+ {[%clk 0:00:03]} 45. Kf4 {[%clk 0:00:17]}  Rc7 {[%clk 0:00:01]} 46. Be6 {[%clk 0:00:16]}  Rc3 {[%clk 0:00:01]} 47. Bd5 {[%clk 0:00:14]}  Rb3 {[%clk 0:00:01]} 48. Rd8 {[%clk 0:00:14]} 1-0


[Site "https://www.chess.com"]

[Event "Titled Tuesday Blitz November 08 Late 2022"]
[White "Luxama, Jacques Muller"]
[Black "Jean Louis, Marckens"]
[WhiteFideId "11900113"]
[BlackFideId "11900270"]
[WhiteElo "1931"]
[BlackElo "2030"]
[Result "1-0"]
[Round "04"]
[TimeControl "180+1"]
[Date "2022.11.09"]
[WhiteClock "0:01:55"]
[BlackClock "0:00:40"]

1. e4 {[%clk 0:03:00]}  c6 {[%clk 0:02:23]} 2. d4 {[%clk 0:02:58]}  d5 {[%clk 0:02:23]} 3. exd5 {[%clk 0:02:57]}  cxd5 {[%clk 0:02:23]} 4. c4 {[%clk 0:02:57]}  Nf6 {[%clk 0:02:22]} 5. Nc3 {[%clk 0:02:57]}  Nc6 {[%clk 0:02:22]} 6. Bg5 {[%clk 0:02:56]}  e6 {[%clk 0:02:21]} 7. Nf3 {[%clk 0:02:55]}  Be7 {[%clk 0:02:19]} 8. c5 {[%clk 0:02:50]}  O-O {[%clk 0:01:55]} 9. Bb5 {[%clk 0:02:50]}  h6 {[%clk 0:01:55]} 10. Bf4 {[%clk 0:02:47]}  Ne4 {[%clk 0:01:54]} 11. O-O {[%clk 0:02:43]}  Bf6 {[%clk 0:01:51]} 12. Bxc6 {[%clk 0:02:42]}  bxc6 {[%clk 0:01:49]} 13. Ne5 {[%clk 0:02:42]}  Ba6 {[%clk 0:01:42]} 14. Re1 {[%clk 0:02:39]}  Bxe5 {[%clk 0:01:40]} 15. Bxe5 {[%clk 0:02:37]}  Nxc3 {[%clk 0:01:39]} 16. bxc3 {[%clk 0:02:37]}  Qa5 {[%clk 0:01:40]} 17. Qg4 {[%clk 0:02:32]}  f6 {[%clk 0:01:24]} 18. Qxe6+ {[%clk 0:02:29]}  Kh8 {[%clk 0:01:20]} 19. Bd6 {[%clk 0:02:28]}  Rfe8 {[%clk 0:01:18]} 20. Qxe8+ {[%clk 0:02:20]}  Rxe8 {[%clk 0:01:19]} 21. Rxe8+ {[%clk 0:02:20]}  Kh7 {[%clk 0:01:20]} 22. Re3 {[%clk 0:02:19]}  Qa3 {[%clk 0:01:15]} 23. h4 {[%clk 0:02:08]}  Qb2 {[%clk 0:01:15]} 24. Rae1 {[%clk 0:02:07]}  Qxa2 {[%clk 0:01:11]} 25. Re7 {[%clk 0:02:06]}  Qd2 {[%clk 0:01:09]} 26. R1e3 {[%clk 0:02:04]}  Qd1+ {[%clk 0:00:59]} 27. Kh2 {[%clk 0:02:04]}  Qg4 {[%clk 0:00:59]} 28. Rg3 {[%clk 0:01:56]}  Qxh4+ {[%clk 0:00:58]} 29. Kg1 {[%clk 0:01:56]}  Qh5 {[%clk 0:00:40]} 30. Rexg7+ {[%clk 0:01:55]} 1-0


[Site "https://www.chess.com"]

[Event "Titled Tuesday Blitz November 08 Late 2022"]
[White "Maksimovic, Bojan"]
[Black "Bortnyk, Olexandr"]
[WhiteFideId "14408120"]
[BlackFideId "14120828"]
[WhiteElo "2447"]
[BlackElo "2723"]
[Result "1/2-1/2"]
[Round "04"]
[TimeControl "180+1"]
[Date "2022.11.08"]
[WhiteClock "0:00:13"]
[BlackClock "0:00:42"]

1. e4 {[%clk 0:03:00]}  Nf6 {[%clk 0:02:57]} 2. Nc3 {[%clk 0:03:01]}  d5 {[%clk 0:02:57]} 3. e5 {[%clk 0:03:01]}  Nfd7 {[%clk 0:02:57]} 4. f4 {[%clk 0:03:01]}  d4 {[%clk 0:02:57]} 5. Ne4 {[%clk 0:03:02]}  f5 {[%clk 0:02:58]} 6. Nf2 {[%clk 0:03:03]}  Nc5 {[%clk 0:02:58]} 7. Nf3 {[%clk 0:03:02]}  Nc6 {[%clk 0:02:56]} 8. c3 {[%clk 0:02:51]}  a6 {[%clk 0:02:40]} 9. b4 {[%clk 0:02:41]}  Ne6 {[%clk 0:02:40]} 10. g3 {[%clk 0:02:42]}  g6 {[%clk 0:02:39]} 11. Bg2 {[%clk 0:02:42]}  Bh6 {[%clk 0:02:36]} 12. h4 {[%clk 0:02:40]}  O-O {[%clk 0:02:36]} 13. O-O {[%clk 0:02:41]}  Ng7 {[%clk 0:02:27]} 14. a4 {[%clk 0:02:29]}  Be6 {[%clk 0:02:27]} 15. Rb1 {[%clk 0:02:26]}  b5 {[%clk 0:01:56]} 16. axb5 {[%clk 0:02:17]}  axb5 {[%clk 0:01:56]} 17. Qe2 {[%clk 0:01:49]}  Ba2 {[%clk 0:01:42]} 18. Qxb5 {[%clk 0:01:17]}  Bxb1 {[%clk 0:01:40]} 19. Qxc6 {[%clk 0:01:17]}  dxc3 {[%clk 0:01:15]} 20. dxc3 {[%clk 0:01:18]}  Qe8 {[%clk 0:01:07]} 21. Nd4 {[%clk 0:01:17]}  Qxc6 {[%clk 0:01:07]} 22. Nxc6 {[%clk 0:01:17]}  Rfe8 {[%clk 0:01:05]} 23. Nxe7+ {[%clk 0:01:16]}  Kf8 {[%clk 0:00:59]} 24. Nd5 {[%clk 0:00:47]}  Nh5 {[%clk 0:00:53]} 25. Nxc7 {[%clk 0:00:44]}  Nxg3 {[%clk 0:00:41]} 26. Nxa8 {[%clk 0:00:32]}  Ne2+ {[%clk 0:00:41]} 27. Kh1 {[%clk 0:00:24]}  Ng3+ {[%clk 0:00:42]} 28. Kg1 {[%clk 0:00:18]}  Ne2+ {[%clk 0:00:42]} 29. Kh1 {[%clk 0:00:19]}  Ng3+ {[%clk 0:00:42]} 30. Kg1 {[%clk 0:00:13]} 1/2-1/2


[Site "https://www.chess.com"]

[Event "Titled Tuesday Blitz November 08 Late 2022"]
[White "Martinez Alcantara, Jose Eduardo"]
[Black "Lewtak, Damian"]
[WhiteFideId "3805662"]
[BlackFideId "1141724"]
[WhiteElo "2705"]
[BlackElo "2329"]
[Result "1-0"]
[Round "04"]
[TimeControl "180+1"]
[Date "2022.11.08"]
[WhiteClock "0:02:11"]
[BlackClock "0:02:32"]

1. e4 {[%clk 0:03:00]}  g6 {[%clk 0:03:00]} 2. d4 {[%clk 0:03:00]}  Bg7 {[%clk 0:03:01]} 3. c3 {[%clk 0:03:00]}  a6 {[%clk 0:03:02]} 4. Bd3 {[%clk 0:03:00]}  b5 {[%clk 0:03:03]} 5. f4 {[%clk 0:03:01]}  Bb7 {[%clk 0:03:03]} 6. Nf3 {[%clk 0:03:02]}  d6 {[%clk 0:03:03]} 7. O-O {[%clk 0:03:02]}  Nd7 {[%clk 0:03:04]} 8. e5 {[%clk 0:03:02]}  e6 {[%clk 0:03:03]} 9. Nbd2 {[%clk 0:03:01]}  Ne7 {[%clk 0:03:01]} 10. Ne4 {[%clk 0:03:01]}  d5 {[%clk 0:03:02]} 11. Nf2 {[%clk 0:03:00]}  c5 {[%clk 0:03:01]} 12. Be3 {[%clk 0:02:55]}  h5 {[%clk 0:03:01]} 13. dxc5 {[%clk 0:02:54]}  d4 {[%clk 0:02:55]} 14. cxd4 {[%clk 0:02:49]}  Nd5 {[%clk 0:02:55]} 15. Bd2 {[%clk 0:02:49]}  Bh6 {[%clk 0:02:52]} 16. Ne4 {[%clk 0:02:48]}  O-O {[%clk 0:02:50]} 17. Nfg5 {[%clk 0:02:39]}  Bc6 {[%clk 0:02:49]} 18. g4 {[%clk 0:02:36]}  h4 {[%clk 0:02:46]} 19. Qe1 {[%clk 0:02:36]}  Bxg5 {[%clk 0:02:41]} 20. Nxg5 {[%clk 0:02:33]}  Kg7 {[%clk 0:02:40]} 21. Bxg6 {[%clk 0:02:12]}  Kxg6 {[%clk 0:02:37]} 22. Qe4+ {[%clk 0:02:12]}  f5 {[%clk 0:02:32]} 23. exf6+ {[%clk 0:02:12]}  Kxf6 {[%clk 0:02:32]} 24. Qxe6+ {[%clk 0:02:12]}  Kg7 {[%clk 0:02:32]} 25. Qxc6 {[%clk 0:02:11]} 1-0


[Site "https://www.chess.com"]

[Event "Titled Tuesday Blitz November 08 Late 2022"]
[White "Martinez, Shawn"]
[Black "Marcolino, Daniel Mattos"]
[WhiteFideId "2039770"]
[BlackFideId "2106841"]
[WhiteElo "2174"]
[BlackElo "2093"]
[Result "1-0"]
[Round "04"]
[TimeControl "180+1"]
[Date "2022.11.09"]
[WhiteClock "0:00:03"]
[BlackClock "0:00:09"]

1. e4 {[%clk 0:02:47]}  c6 {[%clk 0:03:00]} 2. d4 {[%clk 0:02:47]}  d5 {[%clk 0:03:01]} 3. exd5 {[%clk 0:02:45]}  cxd5 {[%clk 0:03:01]} 4. Nf3 {[%clk 0:02:45]}  Nc6 {[%clk 0:02:57]} 5. Ne5 {[%clk 0:02:44]}  Nf6 {[%clk 0:02:45]} 6. Bb5 {[%clk 0:02:29]}  Bd7 {[%clk 0:02:46]} 7. Nxd7 {[%clk 0:02:28]}  Qxd7 {[%clk 0:02:45]} 8. c3 {[%clk 0:02:26]}  a6 {[%clk 0:02:39]} 9. Bd3 {[%clk 0:02:25]}  e6 {[%clk 0:02:38]} 10. O-O {[%clk 0:02:24]}  Bd6 {[%clk 0:02:38]} 11. Nd2 {[%clk 0:02:16]}  O-O {[%clk 0:02:37]} 12. Qe2 {[%clk 0:02:10]}  b5 {[%clk 0:02:36]} 13. Nf3 {[%clk 0:02:00]}  Qb7 {[%clk 0:01:58]} 14. Ne5 {[%clk 0:01:53]}  b4 {[%clk 0:01:44]} 15. f4 {[%clk 0:01:27]}  Rfc8 {[%clk 0:01:43]} 16. Bd2 {[%clk 0:01:24]}  bxc3 {[%clk 0:01:43]} 17. bxc3 {[%clk 0:01:22]}  Bf8 {[%clk 0:01:24]} 18. Rab1 {[%clk 0:00:50]}  Qa7 {[%clk 0:01:15]} 19. Rf3 {[%clk 0:00:37]}  g6 {[%clk 0:01:11]} 20. Re1 {[%clk 0:00:22]}  Bg7 {[%clk 0:01:07]} 21. g4 {[%clk 0:00:17]}  Nd7 {[%clk 0:01:02]} 22. Nxf7 {[%clk 0:00:15]}  Kxf7 {[%clk 0:00:33]} 23. Qxe6+ {[%clk 0:00:13]}  Kf8 {[%clk 0:00:34]} 24. f5 {[%clk 0:00:13]}  Nf6 {[%clk 0:00:25]} 25. fxg6 {[%clk 0:00:12]}  hxg6 {[%clk 0:00:15]} 26. Rxf6+ {[%clk 0:00:10]}  Bxf6 {[%clk 0:00:16]} 27. Qxf6+ {[%clk 0:00:09]}  Kg8 {[%clk 0:00:14]} 28. Bh6 {[%clk 0:00:02]}  Qf7 {[%clk 0:00:13]} 29. Qg5 {[%clk 0:00:02]}  Re8 {[%clk 0:00:12]} 30. Rf1 {[%clk 0:00:01]}  Qh7 {[%clk 0:00:11]} 31. Bxg6 {[%clk 0:00:02]}  Qe7 {[%clk 0:00:09]} 32. Bf7+ {[%clk 0:00:02]}  Kh7 {[%clk 0:00:09]} 33. Qg7# {[%clk 0:00:03]} 1-0


[Site "https://www.chess.com"]

[Event "Titled Tuesday Blitz November 08 Late 2022"]
[White "Mazurkiewicz, Michal"]
[Black "Curtis, John"]
[WhiteFideId "1124943"]
[BlackFideId "3200256"]
[WhiteElo "2063"]
[BlackElo "2203"]
[Result "1-0"]
[Round "04"]
[TimeControl "180+1"]
[Date "2022.11.09"]
[WhiteClock "0:00:29"]
[BlackClock "0:00:04"]

1. e4 {[%clk 0:03:00]}  c5 {[%clk 0:02:59]} 2. Nf3 {[%clk 0:03:00]}  d6 {[%clk 0:02:56]} 3. g3 {[%clk 0:03:00]}  g6 {[%clk 0:02:56]} 4. Bg2 {[%clk 0:03:00]}  Bg7 {[%clk 0:02:56]} 5. O-O {[%clk 0:03:00]}  Nf6 {[%clk 0:02:54]} 6. d3 {[%clk 0:03:00]}  O-O {[%clk 0:02:54]} 7. Re1 {[%clk 0:03:00]}  Nc6 {[%clk 0:02:54]} 8. e5 {[%clk 0:03:00]}  Ng4 {[%clk 0:02:50]} 9. exd6 {[%clk 0:02:59]}  exd6 {[%clk 0:02:50]} 10. Nc3 {[%clk 0:02:59]}  d5 {[%clk 0:02:50]} 11. h3 {[%clk 0:02:54]}  Nf6 {[%clk 0:02:49]} 12. Bf4 {[%clk 0:02:52]}  h6 {[%clk 0:02:46]} 13. Ne5 {[%clk 0:02:39]}  g5 {[%clk 0:02:38]} 14. Nxc6 {[%clk 0:02:39]}  bxc6 {[%clk 0:02:39]} 15. Be5 {[%clk 0:02:40]}  Re8 {[%clk 0:02:26]} 16. Qf3 {[%clk 0:02:24]}  Nd7 {[%clk 0:02:19]} 17. Bxg7 {[%clk 0:02:21]}  Kxg7 {[%clk 0:02:16]} 18. Na4 {[%clk 0:01:58]}  Ba6 {[%clk 0:01:55]} 19. Qg4 {[%clk 0:01:39]}  Rxe1+ {[%clk 0:01:48]} 20. Rxe1 {[%clk 0:01:40]}  Qa5 {[%clk 0:01:47]} 21. Qxd7 {[%clk 0:01:03]}  Qxe1+ {[%clk 0:01:44]} 22. Kh2 {[%clk 0:01:02]}  Qxf2 {[%clk 0:01:34]} 23. Qxc6 {[%clk 0:00:59]}  Rb8 {[%clk 0:01:05]} 24. Qxa6 {[%clk 0:00:58]}  Qxc2 {[%clk 0:00:47]} 25. Qxa7 {[%clk 0:00:58]}  Re8 {[%clk 0:00:44]} 26. Nc3 {[%clk 0:00:52]}  d4 {[%clk 0:00:30]} 27. Ne4 {[%clk 0:00:49]}  Qxd3 {[%clk 0:00:23]} 28. Nd6 {[%clk 0:00:31]}  Rf8 {[%clk 0:00:14]} 29. Qxc5 {[%clk 0:00:32]}  Qd2 {[%clk 0:00:08]} 30. Qe5+ {[%clk 0:00:31]}  Kg8 {[%clk 0:00:04]} 31. Nf5 {[%clk 0:00:29]} 1-0


[Site "https://www.chess.com"]

[Event "Titled Tuesday Blitz November 08 Late 2022"]
[White "Melikhov, Evgeny V."]
[Black "Freile Martin, Javier"]
[WhiteFideId "4122046"]
[BlackFideId "3600165"]
[WhiteElo "2169"]
[BlackElo "2467"]
[Result "1-0"]
[Round "04"]
[TimeControl "180+1"]
[Date "2022.11.09"]
[WhiteClock "0:01:41"]
[BlackClock "0:00:30"]

1. d4 {[%clk 0:02:57]}  Nf6 {[%clk 0:02:57]} 2. c4 {[%clk 0:02:57]}  g6 {[%clk 0:02:57]} 3. Nc3 {[%clk 0:02:57]}  Bg7 {[%clk 0:02:57]} 4. e4 {[%clk 0:02:58]}  d6 {[%clk 0:02:57]} 5. f3 {[%clk 0:02:58]}  O-O {[%clk 0:02:55]} 6. Be3 {[%clk 0:02:58]}  e5 {[%clk 0:02:50]} 7. d5 {[%clk 0:02:58]}  Nh5 {[%clk 0:02:44]} 8. Qd2 {[%clk 0:02:58]}  Qh4+ {[%clk 0:02:42]} 9. Bf2 {[%clk 0:02:47]}  Qe7 {[%clk 0:02:41]} 10. O-O-O {[%clk 0:02:38]}  Na6 {[%clk 0:02:35]} 11. Kb1 {[%clk 0:02:17]}  f5 {[%clk 0:02:29]} 12. exf5 {[%clk 0:02:06]}  gxf5 {[%clk 0:02:28]} 13. Nge2 {[%clk 0:01:56]}  Bd7 {[%clk 0:02:24]} 14. h3 {[%clk 0:01:53]}  f4 {[%clk 0:01:59]} 15. Ne4 {[%clk 0:01:49]}  b6 {[%clk 0:01:50]} 16. N2c3 {[%clk 0:01:46]}  Nc5 {[%clk 0:01:05]} 17. Nxc5 {[%clk 0:01:42]}  bxc5 {[%clk 0:00:30]} 18. Ne4 {[%clk 0:01:41]} 1-0


[Site "https://www.chess.com"]

[Event "Titled Tuesday Blitz November 08 Late 2022"]
[White "Mendez Fortes, Eduardo Jesus"]
[Black "Martinez Reyes, Pedro Ramon"]
[WhiteFideId "3502376"]
[BlackFideId "3901807"]
[WhiteElo "2307"]
[BlackElo "2354"]
[Result "1-0"]
[Round "04"]
[TimeControl "180+1"]
[Date "2022.11.09"]
[WhiteClock "0:00:17"]
[BlackClock "0:00:26"]

1. e4 {[%clk 0:03:00]}  d5 {[%clk 0:02:58]} 2. exd5 {[%clk 0:03:00]}  Qxd5 {[%clk 0:02:59]} 3. Nc3 {[%clk 0:03:00]}  Qd8 {[%clk 0:03:00]} 4. d4 {[%clk 0:03:00]}  Nf6 {[%clk 0:03:01]} 5. Bc4 {[%clk 0:03:00]}  g6 {[%clk 0:03:02]} 6. Nf3 {[%clk 0:03:00]}  Bg7 {[%clk 0:03:03]} 7. Ne5 {[%clk 0:03:00]}  O-O {[%clk 0:03:04]} 8. Be3 {[%clk 0:02:53]}  Nbd7 {[%clk 0:03:04]} 9. f4 {[%clk 0:02:49]}  Nb6 {[%clk 0:03:04]} 10. Bb3 {[%clk 0:02:49]}  a5 {[%clk 0:03:04]} 11. a4 {[%clk 0:02:48]}  Nbd5 {[%clk 0:03:04]} 12. Qf3 {[%clk 0:02:43]}  c6 {[%clk 0:03:04]} 13. Bf2 {[%clk 0:02:31]}  Nxc3 {[%clk 0:02:44]} 14. bxc3 {[%clk 0:02:29]}  Bf5 {[%clk 0:02:39]} 15. O-O {[%clk 0:02:24]}  Qc8 {[%clk 0:02:07]} 16. Rfe1 {[%clk 0:02:19]}  Be6 {[%clk 0:02:04]} 17. Bxe6 {[%clk 0:02:16]}  fxe6 {[%clk 0:01:59]} 18. Bh4 {[%clk 0:02:11]}  Nd5 {[%clk 0:01:58]} 19. g3 {[%clk 0:02:05]}  Bf6 {[%clk 0:01:55]} 20. Bxf6 {[%clk 0:01:49]}  exf6 {[%clk 0:01:56]} 21. Nc4 {[%clk 0:01:43]}  Qd7 {[%clk 0:01:54]} 22. Reb1 {[%clk 0:01:34]}  b5 {[%clk 0:01:46]} 23. axb5 {[%clk 0:01:30]}  cxb5 {[%clk 0:01:47]} 24. Nxa5 {[%clk 0:01:30]}  Qc7 {[%clk 0:01:48]} 25. Nb3 {[%clk 0:01:26]}  Qxc3 {[%clk 0:01:47]} 26. Qxc3 {[%clk 0:01:21]}  Nxc3 {[%clk 0:01:48]} 27. Re1 {[%clk 0:01:21]}  Kf7 {[%clk 0:01:33]} 28. Kf2 {[%clk 0:01:15]}  Ra4 {[%clk 0:01:31]} 29. Nc5 {[%clk 0:01:07]}  Raa8 {[%clk 0:00:52]} 30. Rxa8 {[%clk 0:00:37]}  Rxa8 {[%clk 0:00:53]} 31. Rxe6 {[%clk 0:00:34]}  Ra2 {[%clk 0:00:50]} 32. Ke3 {[%clk 0:00:29]}  Nd5+ {[%clk 0:00:41]} 33. Kd3 {[%clk 0:00:26]}  Ra3+ {[%clk 0:00:40]} 34. Kd2 {[%clk 0:00:25]}  Rf3 {[%clk 0:00:31]} 35. Rd6 {[%clk 0:00:18]}  Nc3 {[%clk 0:00:30]} 36. Rd7+ {[%clk 0:00:17]}  Ke8 {[%clk 0:00:30]} 37. Rxh7 {[%clk 0:00:16]}  f5 {[%clk 0:00:27]} 38. Nd3 {[%clk 0:00:16]}  Ne4+ {[%clk 0:00:27]} 39. Ke2 {[%clk 0:00:16]}  Nf6 {[%clk 0:00:15]} 40. Rh8+ {[%clk 0:00:15]}  Kf7 {[%clk 0:00:15]} 41. Kxf3 {[%clk 0:00:16]}  Kg7 {[%clk 0:00:16]} 42. Rb8 {[%clk 0:00:15]}  Ne4 {[%clk 0:00:15]} 43. Rb7+ {[%clk 0:00:15]}  Kf6 {[%clk 0:00:15]} 44. Ne5 {[%clk 0:00:15]}  Nd2+ {[%clk 0:00:16]} 45. Ke2 {[%clk 0:00:14]}  Nc4 {[%clk 0:00:17]} 46. Nxc4 {[%clk 0:00:13]}  bxc4 {[%clk 0:00:18]} 47. Rc7 {[%clk 0:00:13]}  c3 {[%clk 0:00:19]} 48. Rxc3 {[%clk 0:00:14]}  g5 {[%clk 0:00:20]} 49. Rc6+ {[%clk 0:00:13]}  Kg7 {[%clk 0:00:20]} 50. fxg5 {[%clk 0:00:14]}  f4 {[%clk 0:00:21]} 51. gxf4 {[%clk 0:00:14]}  Kf7 {[%clk 0:00:21]} 52. f5 {[%clk 0:00:15]}  Kg7 {[%clk 0:00:22]} 53. Kf3 {[%clk 0:00:16]}  Kf7 {[%clk 0:00:23]} 54. Rc7+ {[%clk 0:00:16]}  Kg8 {[%clk 0:00:24]} 55. f6 {[%clk 0:00:16]}  Kf8 {[%clk 0:00:25]} 56. g6 {[%clk 0:00:17]}  Kg8 {[%clk 0:00:26]} 57. Rc8# {[%clk 0:00:17]} 1-0


[Site "https://www.chess.com"]